fUST/lending_fUST_20260610
["ID","MTS","AMOUNT","RATE_DAILY","PERIOD"]
[424737156,1781101854000,-151.0,0.00021918,2]
[424737144,1781101854000,-252.774405,0.00021918,2]
[424737159,1781101854000,-250.130496,0.00021918,2]
[424737154,1781101854000,-385.144061,0.00021918,2]
[424737166,1781101854000,-409.4,0.00021918,2]
[424737165,1781101854000,-409.4,0.00021918,2]
[424737157,1781101854000,-233.531456,0.00021918,2]
[424737161,1781101854000,-250.130488,0.00021918,2]
[424737158,1781101854000,-250.130496,0.00021918,2]
[424737163,1781101854000,-409.4,0.00021918,2]
[424737168,1781101854000,-970.906017,0.00021918,2]
[424737164,1781101854000,-409.4,0.00021918,2]
[424737162,1781101854000,-196.0,0.00021918,2]
[424737167,1781101854000,-970.906017,0.00021918,2]
[424737170,1781101854000,-970.90601,0.00021918,2]
[424737108,1781101854000,-326.5583472,0.00021918,2]
[424737160,1781101854000,-250.130496,0.00021918,2]
[424737141,1781101854000,-252.774402,0.00021918,2]
[424737169,1781101854000,-970.906017,0.00021918,2]
[424737135,1781101854000,-252.774402,0.00021918,2]
[424737107,1781101854000,-326.5583472,0.00021918,2]
[424737114,1781101854000,-457.446844,0.00021918,2]
[424737111,1781101854000,-326.5583472,0.00021918,2]
[424737112,1781101854000,-457.446844,0.00021918,2]
[424737113,1781101854000,-325.7726104,0.00021918,2]
[424737117,1781101854000,-326.5583472,0.00021918,2]
[424737116,1781101854000,-457.446844,0.00021918,2]
[424737118,1781101854000,-320.9828799,0.00021918,2]
[424737138,1781101854000,-252.774402,0.00021918,2]
[424737119,1781101854000,-326.5583472,0.00021918,2]
[424737122,1781101854000,-457.446844,0.00021918,2]
[424737121,1781101854000,-457.446844,0.00021918,2]
[424737125,1781101854000,-171.491928,0.00021918,2]
[424737123,1781101854000,-171.491928,0.00021918,2]
[424737127,1781101854000,-367.68657,0.00021918,2]
[424737126,1781101854000,-171.491921,0.00021918,2]
[424737131,1781101854000,-151.0,0.00021918,2]
[424737120,1781101854000,-457.446844,0.00021918,2]
[424737133,1781101854000,-151.0,0.00021918,2]
[424737137,1781101854000,-252.774402,0.00021918,2]
[424737132,1781101854000,-151.0,0.00021918,2]
[424737136,1781101854000,-252.774402,0.00021918,2]
[424737134,1781101854000,-151.0,0.00021918,2]
[424737140,1781101854000,-252.774402,0.00021918,2]
[424737128,1781101854000,-367.68657,0.00021918,2]
[424737139,1781101854000,-177.820101,0.00021918,2]
[424737129,1781101854000,-367.68657,0.00021918,2]
[424737124,1781101854000,-171.491928,0.00021918,2]
[424737130,1781101854000,-367.686567,0.00021918,2]
[424737207,1781101855000,-151.0,0.00021918,2]
[424737213,1781101855000,-151.0,0.00021918,2]
[424737223,1781101855000,-657.915038,0.00021918,2]
[424737210,1781101855000,-151.0,0.00021918,2]
[424737208,1781101855000,-151.0,0.00021918,2]
[424737200,1781101855000,-312.127031,0.00021918,2]
[424737206,1781101855000,-151.0,0.00021918,2]
[424737202,1781101855000,-306.116405,0.00021918,2]
[424737204,1781101855000,-306.116402,0.00021918,2]
[424737201,1781101855000,-306.116405,0.00021918,2]
[424737209,1781101855000,-151.0,0.00021918,2]
[424737224,1781101855000,-151.0,0.00021918,2]
[424737226,1781101855000,-214.170262,0.00021918,2]
[424737214,1781101855000,-151.0,0.00021918,2]
[424737216,1781101855000,-1234.979263,0.00021918,2]
[424737219,1781101855000,-657.915038,0.00021918,2]
[424737220,1781101855000,-151.0,0.00021918,2]
[424737221,1781101855000,-1234.979259,0.00021918,2]
[424737217,1781101855000,-1234.979263,0.00021918,2]
[424737215,1781101855000,-151.0,0.00021918,2]
[424737222,1781101855000,-222.866569,0.00021918,2]
[424737218,1781101855000,-1234.979263,0.00021918,2]
[424737225,1781101855000,-657.915038,0.00021918,2]
[424737228,1781101855000,-2737.896093,0.00021918,2]
[424737229,1781101855000,-2737.896093,0.00021918,2]
[424737211,1781101855000,-500.0,0.00021918,2]
[424737212,1781101855000,-541.64744455,0.00021918,2]
[424737205,1781101855000,-151.0,0.00021918,2]
[424737184,1781101855000,-151.0,0.00021918,2]
[424737198,1781101855000,-312.127034,0.00021918,2]
[424737227,1781101855000,-657.915041,0.00021918,2]
[424737172,1781101855000,-369.590391,0.00021918,2]
[424737177,1781101855000,-406.549408,0.00021918,2]
[424737173,1781101855000,-369.590391,0.00021918,2]
[424737175,1781101855000,-406.549408,0.00021918,2]
[424737176,1781101855000,-406.549408,0.00021918,2]
[424737174,1781101855000,-369.590399,0.00021918,2]
[424737179,1781101855000,-378.799418,0.00021918,2]
[424737180,1781101855000,-378.799418,0.00021918,2]
[424737178,1781101855000,-406.54941,0.00021918,2]
[424737182,1781101855000,-151.0,0.00021918,2]
[424737181,1781101855000,-378.799418,0.00021918,2]
[424737185,1781101855000,-151.0,0.00021918,2]
[424737186,1781101855000,-2930.369636,0.00021918,2]
[424737183,1781101855000,-378.799413,0.00021918,2]
[424737187,1781101855000,-2930.369636,0.00021918,2]
[424737189,1781101855000,-2930.36963735,0.00021918,2]
[424737188,1781101855000,-2930.369636,0.00021918,2]
[424737199,1781101855000,-312.127034,0.00021918,2]
[424737191,1781101855000,-364.9,0.00021918,2]
[424737194,1781101855000,-276.298454,0.00021918,2]
[424737195,1781101855000,-364.9,0.00021918,2]
[424737190,1781101855000,-364.9,0.00021918,2]
[424737197,1781101855000,-312.127034,0.00021918,2]
[424737193,1781101855000,-364.9,0.00021918,2]
[424737196,1781101855000,-151.0,0.00021918,2]
[424737192,1781101855000,-151.0,0.00021918,2]
[424737203,1781101855000,-306.116405,0.00021918,2]
[424737236,1781101855000,-151.0,0.00021918,2]
[424737171,1781101855000,-369.590391,0.00021918,2]
[424737231,1781101855000,-2737.896085,0.00021918,2]
[424737265,1781101855000,-770.62,0.00022191,2]
[424737264,1781101855000,-1736.27,0.00022191,2]
[424737275,1781101855000,-500.0,0.00022191,2]
[424737266,1781101855000,-880.35,0.00022191,2]
[424737273,1781101855000,-1002.07,0.00022191,2]
[424737269,1781101855000,-5123.68,0.00022191,2]
[424737268,1781101855000,-696.0,0.00022191,2]
[424737267,1781101855000,-500.0,0.00022191,2]
[424737270,1781101855000,-500.0,0.00022191,2]
[424737274,1781101855000,-500.0,0.00022191,2]
[424737271,1781101855000,-500.0,0.00022191,2]
[424737272,1781101855000,-245.9928489,0.00022191,2]
[424737279,1781101855000,-152.14,0.00022217,7]
[424737278,1781101855000,-164.46,0.00022192,2]
[424737286,1781101855000,-556.10052703,0.00022308,2]
[424737277,1781101855000,-509.53,0.00022191,2]
[424737281,1781101855000,-152.14,0.00022267,7]
[424737284,1781101855000,-850.41586386,0.00022293,2]
[424737287,1781101855000,-152.14,0.00022317,7]
[424737280,1781101855000,-764.72171499,0.00022224,2]
[424737283,1781101855000,-817.48151791,0.00022292,2]
[424737282,1781101855000,-617.30296074,0.00022285,2]
[424737285,1781101855000,-801.86670775,0.00022293,2]
[424737288,1781101855000,-152.14,0.00022367,7]
[424737290,1781101855000,-864.0,0.00022432,10]
[424737289,1781101855000,-152.14,0.00022417,7]
[424737233,1781101855000,-151.0,0.00021918,2]
[424737260,1781101855000,-500.0,0.00022191,2]
[424737256,1781101855000,-152.14,0.00022117,7]
[424737276,1781101855000,-500.0,0.00022191,2]
[424737257,1781101855000,-152.0,0.00022117,2]
[424737263,1781101855000,-500.0,0.00022191,2]
[424737235,1781101855000,-244.844085,0.00021918,2]
[424737237,1781101855000,-244.844085,0.00021918,2]
[424737230,1781101855000,-2737.896093,0.00021918,2]
[424737234,1781101855000,-151.0,0.00021918,2]
[424737239,1781101855000,-244.844085,0.00021918,2]
[424737249,1781101855000,-1281.0,0.00022,5]
[424737250,1781101855000,-152.14,0.00022017,7]
[424737238,1781101855000,-244.844085,0.00021918,2]
[424737240,1781101855000,-220.140847,0.00021918,2]
[424737241,1781101855000,-220.140847,0.00021918,2]
[424737242,1781101855000,-156.07,0.00021946,7]
[424737244,1781101855000,-152.14,0.00021967,7]
[424737243,1781101855000,-579.40488466,0.0002196,10]
[424737232,1781101855000,-151.0,0.00021918,2]
[424737252,1781101855000,-156.07,0.00022046,7]
[424737245,1781101855000,-7068.24005058,0.00021967,2]
[424737248,1781101855000,-175.2787338,0.00022,10]
[424737246,1781101855000,-156.07,0.00021996,7]
[424737251,1781101855000,-532.43220596,0.00022035,2]
[424737254,1781101855000,-156.07,0.00022096,7]
[424737253,1781101855000,-152.14,0.00022067,7]
[424737255,1781101855000,-202.29,0.000221,2]
[424737262,1781101855000,-500.0,0.00022191,2]
[424737247,1781101855000,-600.0,0.00022,5]
[424737259,1781101855000,-152.14,0.00022167,7]
[424737261,1781101855000,-574.04,0.00022191,2]
[424737258,1781101855000,-152.0,0.00022117,2]
[424737328,1781101856000,-501.71,0.000226,2]
[424737329,1781101856000,-364.81,0.000226,2]
[424737322,1781101856000,-789.52,0.000226,2]
[424737332,1781101856000,-2060.23457713,0.00022655,2]
[424737330,1781101856000,-152.14,0.00022617,7]
[424737333,1781101856000,-152.14,0.00022667,7]
[424737320,1781101856000,-638.9515,0.000226,2]
[424737326,1781101856000,-419.3059,0.000226,2]
[424737325,1781101856000,-481.6941,0.000226,2]
[424737324,1781101856000,-789.52,0.000226,2]
[424737335,1781101856000,-1500.0,0.00022692,2]
[424737334,1781101856000,-917.66605799,0.00022684,2]
[424737327,1781101856000,-553.5059,0.000226,2]
[424737331,1781101856000,-1700.0336929,0.00022655,2]
[424737341,1781101856000,-500.0,0.00022739,2]
[424737337,1781101856000,-152.14,0.00022717,7]
[424737347,1781101856000,-5123.68,0.00022739,2]
[424737348,1781101856000,-500.0,0.00022739,2]
[424737339,1781101856000,-574.04,0.00022739,2]
[424737340,1781101856000,-500.0,0.00022739,2]
[424737338,1781101856000,-500.0,0.00022739,2]
[424737343,1781101856000,-770.62,0.00022739,2]
[424737342,1781101856000,-1736.27,0.00022739,2]
[424737345,1781101856000,-500.0,0.00022739,2]
[424737346,1781101856000,-696.0,0.00022739,2]
[424737344,1781101856000,-880.35,0.00022739,2]
[424737361,1781101856000,-151.0,0.00022834,2]
[424737336,1781101856000,-532.43220596,0.00022698,2]
[424737321,1781101856000,-481.6941,0.000226,2]
[424737300,1781101856000,-5123.68,0.00022465,2]
[424737319,1781101856000,-364.81,0.000226,2]
[424737301,1781101856000,-500.0,0.00022465,2]
[424737292,1781101856000,-574.04,0.00022465,2]
[424737291,1781101856000,-500.0,0.00022465,2]
[424737296,1781101856000,-770.62,0.00022465,2]
[424737293,1781101856000,-500.0,0.00022465,2]
[424737299,1781101856000,-696.0,0.00022465,2]
[424737297,1781101856000,-880.35,0.00022465,2]
[424737294,1781101856000,-500.0,0.00022465,2]
[424737295,1781101856000,-1736.27,0.00022465,2]
[424737298,1781101856000,-500.0,0.00022465,2]
[424737302,1781101856000,-411.23595477,0.00022465,2]
[424737303,1781101856000,-1002.07,0.00022465,2]
[424737310,1781101856000,-186.0,0.00022499,2]
[424737307,1781101856000,-509.53,0.00022465,2]
[424737304,1781101856000,-500.0,0.00022465,2]
[424737305,1781101856000,-500.0,0.00022465,2]
[424737306,1781101856000,-500.0,0.00022465,2]
[424737309,1781101856000,-152.14,0.00022467,7]
[424737313,1781101856000,-152.14,0.00022567,7]
[424737314,1781101856000,-373.3011,0.000226,2]
[424737312,1781101856000,-152.14,0.00022517,7]
[424737308,1781101856000,-164.53,0.00022466,2]
[424737311,1781101856000,-1045.79296034,0.000225,2]
[424737316,1781101856000,-199.6623,0.000226,2]
[424737317,1781101856000,-387.53,0.000226,2]
[424737315,1781101856000,-387.53,0.000226,2]
[424737318,1781101856000,-383.5218,0.000226,2]
[424737323,1781101856000,-481.6941,0.000226,2]
[424737360,1781101856000,-151.0,0.00022834,2]
[424737349,1781101856000,-1002.07,0.00022739,2]
[424737350,1781101856000,-500.0,0.00022739,2]
[424737379,1781101856000,-151.0,0.00022834,2]
[424737382,1781101856000,-151.0,0.00022834,2]
[424737387,1781101856000,-151.0,0.00022834,2]
[424737391,1781101856000,-151.0,0.00022834,2]
[424737388,1781101856000,-151.0,0.00022834,2]
[424737390,1781101856000,-151.0,0.00022834,2]
[424737389,1781101856000,-151.0,0.00022834,2]
[424737394,1781101856000,-151.0,0.00022834,2]
[424737393,1781101856000,-151.0,0.00022834,2]
[424737395,1781101856000,-151.0,0.00022834,2]
[424737392,1781101856000,-151.0,0.00022834,2]
[424737397,1781101856000,-151.0,0.00022834,2]
[424737398,1781101856000,-151.0,0.00022834,2]
[424737396,1781101856000,-151.0,0.00022834,2]
[424737399,1781101856000,-151.0,0.00022834,2]
[424737407,1781101856000,-151.0,0.00022834,2]
[424737409,1781101856000,-151.0,0.00022834,2]
[424737400,1781101856000,-151.0,0.00022834,2]
[424737410,1781101856000,-151.0,0.00022834,2]
[424737408,1781101856000,-151.0,0.00022834,2]
[424737401,1781101856000,-151.0,0.00022834,2]
[424737406,1781101856000,-151.0,0.00022834,2]
[424737403,1781101856000,-151.0,0.00022834,2]
[424737405,1781101856000,-151.0,0.00022834,2]
[424737402,1781101856000,-151.0,0.00022834,2]
[424737354,1781101856000,-457.446844,0.0002274,2]
[424737411,1781101856000,-151.0,0.00022834,2]
[424737380,1781101856000,-151.0,0.00022834,2]
[424737378,1781101856000,-151.0,0.00022834,2]
[424737404,1781101856000,-151.0,0.00022834,2]
[424737381,1781101856000,-151.0,0.00022834,2]
[424737383,1781101856000,-151.0,0.00022834,2]
[424737356,1781101856000,-652.1023,0.000228,2]
[424737357,1781101856000,-152.14,0.00022817,7]
[424737359,1781101856000,-151.0,0.00022834,2]
[424737353,1781101856000,-509.53,0.00022739,2]
[424737358,1781101856000,-151.0,0.00022834,2]
[424737351,1781101856000,-197.01832526,0.00022739,2]
[424737352,1781101856000,-500.0,0.00022739,2]
[424737362,1781101856000,-151.0,0.00022834,2]
[424737364,1781101856000,-151.0,0.00022834,2]
[424737368,1781101856000,-151.0,0.00022834,2]
[424737372,1781101856000,-151.0,0.00022834,2]
[424737370,1781101856000,-151.0,0.00022834,2]
[424737355,1781101856000,-152.14,0.00022767,7]
[424737365,1781101856000,-151.0,0.00022834,2]
[424737376,1781101856000,-151.0,0.00022834,2]
[424737384,1781101856000,-151.0,0.00022834,2]
[424737385,1781101856000,-151.0,0.00022834,2]
[424737386,1781101856000,-151.0,0.00022834,2]
[424737367,1781101856000,-151.0,0.00022834,2]
[424737377,1781101856000,-151.0,0.00022834,2]
[424737374,1781101856000,-151.0,0.00022834,2]
[424737369,1781101856000,-151.0,0.00022834,2]
[424737366,1781101856000,-151.0,0.00022834,2]
[424737373,1781101856000,-151.0,0.00022834,2]
[424737371,1781101856000,-151.0,0.00022834,2]
[424737363,1781101856000,-151.0,0.00022834,2]
[424737375,1781101856000,-151.0,0.00022834,2]
[424737451,1781101857000,-151.0,0.00022834,2]
[424737452,1781101857000,-151.0,0.00022834,2]
[424737450,1781101857000,-151.0,0.00022834,2]
[424737444,1781101857000,-151.0,0.00022834,2]
[424737447,1781101857000,-151.0,0.00022834,2]
[424737448,1781101857000,-151.0,0.00022834,2]
[424737449,1781101857000,-151.0,0.00022834,2]
[424737445,1781101857000,-151.0,0.00022834,2]
[424737443,1781101857000,-151.0,0.00022834,2]
[424737439,1781101857000,-151.0,0.00022834,2]
[424737440,1781101857000,-151.0,0.00022834,2]
[424737456,1781101857000,-151.0,0.00022834,2]
[424737459,1781101857000,-1020.49903664,0.00022855,2]
[424737455,1781101857000,-151.0,0.00022834,2]
[424737457,1781101857000,-151.0,0.00022834,2]
[424737454,1781101857000,-151.0,0.00022834,2]
[424737469,1781101857000,-1550.96,0.00023,2]
[424737458,1781101857000,-980.97782149,0.00022853,2]
[424737463,1781101857000,-152.14,0.00022967,7]
[424737465,1781101857000,-290.7281658,0.00023,3]
[424737460,1781101857000,-152.14,0.00022867,7]
[424737462,1781101857000,-262.26671664,0.00022926,2]
[424737464,1781101857000,-108676.31363584,0.00023,2]
[424737461,1781101857000,-152.14,0.00022917,7]
[424737442,1781101857000,-151.0,0.00022834,2]
[424737453,1781101857000,-151.0,0.00022834,2]
[424737446,1781101857000,-151.0,0.00022834,2]
[424737435,1781101857000,-151.0,0.00022834,2]
[424737438,1781101857000,-151.0,0.00022834,2]
[424737412,1781101857000,-151.0,0.00022834,2]
[424737423,1781101857000,-151.0,0.00022834,2]
[424737422,1781101857000,-151.0,0.00022834,2]
[424737413,1781101857000,-151.0,0.00022834,2]
[424737415,1781101857000,-151.0,0.00022834,2]
[424737420,1781101857000,-151.0,0.00022834,2]
[424737414,1781101857000,-151.0,0.00022834,2]
[424737416,1781101857000,-151.0,0.00022834,2]
[424737421,1781101857000,-151.0,0.00022834,2]
[424737417,1781101857000,-151.0,0.00022834,2]
[424737418,1781101857000,-151.0,0.00022834,2]
[424737419,1781101857000,-151.0,0.00022834,2]
[424737425,1781101857000,-151.0,0.00022834,2]
[424737436,1781101857000,-151.0,0.00022834,2]
[424737424,1781101857000,-151.0,0.00022834,2]
[424737427,1781101857000,-151.0,0.00022834,2]
[424737428,1781101857000,-151.0,0.00022834,2]
[424737432,1781101857000,-151.0,0.00022834,2]
[424737434,1781101857000,-151.0,0.00022834,2]
[424737429,1781101857000,-151.0,0.00022834,2]
[424737426,1781101857000,-151.0,0.00022834,2]
[424737433,1781101857000,-151.0,0.00022834,2]
[424737430,1781101857000,-151.0,0.00022834,2]
[424737466,1781101857000,-1721.9083,0.00023,2]
[424737437,1781101857000,-151.0,0.00022834,2]
[424737441,1781101857000,-151.0,0.00022834,2]
[424737468,1781101857000,-1912.37,0.00023,2]
[424737431,1781101857000,-151.0,0.00022834,2]
[424737470,1781101857000,-1336.9574,0.00023,2]
[424737510,1781101857000,-696.0,0.00023287,2]
[424737508,1781101857000,-880.35,0.00023287,2]
[424737509,1781101857000,-500.0,0.00023287,2]
[424737505,1781101857000,-500.0,0.00023287,2]
[424737503,1781101857000,-574.04,0.00023287,2]
[424737506,1781101857000,-1736.27,0.00023287,2]
[424737504,1781101857000,-500.0,0.00023287,2]
[424737501,1781101857000,-400.0,0.000232,2]
[424737502,1781101857000,-500.0,0.00023287,2]
[424737507,1781101857000,-770.62,0.00023287,2]
[424737512,1781101857000,-1002.07,0.00023287,2]
[424737511,1781101857000,-5123.68,0.00023287,2]
[424737523,1781101857000,-614.7,0.000233,2]
[424737522,1781101857000,-1495.85,0.000233,2]
[424737517,1781101857000,-567.89440167,0.00023288,2]
[424737514,1781101857000,-509.53,0.00023287,2]
[424737513,1781101857000,-500.0,0.00023287,2]
[424737521,1781101857000,-1495.854,0.000233,2]
[424737516,1781101857000,-378.59626778,0.00023288,2]
[424737518,1781101857000,-757.19253556,0.00023288,2]
[424737519,1781101857000,-273.13749457,0.000233,2]
[424737520,1781101857000,-1366.5336,0.000233,2]
[424737524,1781101857000,-1339.6719,0.000233,2]
[424737525,1781101857000,-275361.88841924,0.00023444,2]
[424737467,1781101857000,-258.02410691,0.00023,2]
[424737500,1781101857000,-1501.364422,0.00023155,2]
[424737497,1781101857000,-1500.0,0.00023155,2]
[424737515,1781101857000,-189.29813389,0.00023288,2]
[424737498,1781101857000,-1500.0,0.00023155,2]
[424737499,1781101857000,-1500.0,0.00023155,2]
[424737473,1781101857000,-1209.02,0.00023,2]
[424737475,1781101857000,-1723.95,0.00023,2]
[424737478,1781101857000,-574.04,0.00023013,2]
[424737471,1781101857000,-1209.026,0.00023,2]
[424737474,1781101857000,-1723.958,0.00023,2]
[424737476,1781101857000,-645.5892,0.00023,2]
[424737479,1781101857000,-500.0,0.00023013,2]
[424737472,1781101857000,-1209.026,0.00023,2]
[424737480,1781101857000,-500.0,0.00023013,2]
[424737482,1781101857000,-770.62,0.00023013,2]
[424737481,1781101857000,-1736.27,0.00023013,2]
[424737484,1781101857000,-500.0,0.00023013,2]
[424737477,1781101857000,-500.0,0.00023013,2]
[424737495,1781101857000,-152.1733395,0.00023067,7]
[424737492,1781101857000,-152.14,0.00023017,7]
[424737493,1781101857000,-152.0,0.00023039,2]
[424737494,1781101857000,-532.43220596,0.00023049,2]
[424737490,1781101857000,-500.0,0.00023013,2]
[424737491,1781101857000,-509.53,0.00023013,2]
[424737488,1781101857000,-1002.07,0.00023013,2]
[424737489,1781101857000,-432.18483529,0.00023013,2]
[424737487,1781101857000,-370.22414853,0.00023013,2]
[424737483,1781101857000,-880.35,0.00023013,2]
[424737485,1781101857000,-696.0,0.00023013,2]
[424737496,1781101857000,-201.92,0.000231,2]
[424737486,1781101857000,-5123.68,0.00023013,2]
[424737528,1781101858000,-62352.83640738,0.00023444,2]
[424737526,1781101858000,-1778.651535,0.00023444,2]
[424737527,1781101858000,-3174.0,0.00023444,2]
[424737529,1781101873000,224.38860207,0.00020563,120]
[424737530,1781102085000,320.63,0.000241,30]
[424737535,1781102944000,10000.0,0.0002411,30]
[424737572,1781103040000,-97.67868723,0.000155,2]
[424737571,1781103040000,-1170.0,0.00015345,2]
[424737573,1781103040000,-4902.32131277,0.000155,2]
[424737579,1781103040000,-417.5,0.00016716,2]
[424737577,1781103040000,-500.0,0.00016716,2]
[424737581,1781103040000,-4919.30657496,0.00016717,2]
[424737575,1781103040000,-500.0,0.00016716,2]
[424737653,1781103046000,-210.38114376,0.000178,2]
[424737646,1781103046000,-344.90863688,0.000177,2]
[424737655,1781103046000,-170.17559606,0.00017823,2]
[424737641,1781103046000,-31.87856288,0.000177,2]
[424737637,1781103046000,-241.26266493,0.000177,2]
[424737638,1781103046000,-241.26266493,0.000177,2]
[424737639,1781103046000,-254.20134164,0.000177,2]
[424737636,1781103046000,-300.0,0.00017306,2]
[424737643,1781103046000,-256.54386088,0.000177,2]
[424737640,1781103046000,-254.20134164,0.000177,2]
[424737642,1781103046000,-224.665298,0.000177,2]
[424737635,1781103046000,-300.0,0.00017306,2]
[424737633,1781103046000,-300.0,0.00017306,2]
[424737634,1781103046000,-300.0,0.00017306,2]
[424737626,1781103046000,-300.0,0.00017306,2]
[424737631,1781103046000,-300.0,0.00017306,2]
[424737629,1781103046000,-300.0,0.00017306,2]
[424737628,1781103046000,-300.0,0.00017306,2]
[424737630,1781103046000,-300.0,0.00017306,2]
[424737625,1781103046000,-300.0,0.00017306,2]
[424737627,1781103046000,-300.0,0.00017306,2]
[424737624,1781103046000,-300.0,0.00017306,2]
[424737623,1781103046000,-300.0,0.00017306,2]
[424737621,1781103046000,-10080.69342494,0.00016717,2]
[424737622,1781103046000,-300.0,0.00017306,2]
[424737656,1781103046000,-184.17646347,0.00017876,2]
[424737632,1781103046000,-300.0,0.00017306,2]
[424737651,1781103046000,-206.24018548,0.000178,2]
[424737661,1781103046000,-601.1281687,0.00017876,2]
[424737650,1781103046000,-204.9924941,0.000178,2]
[424737676,1781103046000,-646.21278135,0.00017876,2]
[424737674,1781103046000,-646.21278135,0.00017876,2]
[424737675,1781103046000,-646.21278135,0.00017876,2]
[424737677,1781103046000,-646.21278135,0.00017876,2]
[424737673,1781103046000,-646.21278135,0.00017876,2]
[424737672,1781103046000,-646.21278135,0.00017876,2]
[424737670,1781103046000,-601.1281687,0.00017876,2]
[424737671,1781103046000,-646.21278135,0.00017876,2]
[424737667,1781103046000,-601.1281687,0.00017876,2]
[424737665,1781103046000,-601.1281687,0.00017876,2]
[424737664,1781103046000,-601.1281687,0.00017876,2]
[424737663,1781103046000,-601.1281687,0.00017876,2]
[424737669,1781103046000,-601.1281687,0.00017876,2]
[424737666,1781103046000,-601.1281687,0.00017876,2]
[424737659,1781103046000,-601.1281687,0.00017876,2]
[424737652,1781103046000,-206.24018548,0.000178,2]
[424737668,1781103046000,-601.1281687,0.00017876,2]
[424737645,1781103046000,-264.36644611,0.000177,2]
[424737647,1781103046000,-198.05121242,0.000178,2]
[424737649,1781103046000,-204.9924941,0.000178,2]
[424737654,1781103046000,-210.38114376,0.000178,2]
[424737644,1781103046000,-264.36644611,0.000177,2]
[424737658,1781103046000,-601.1281687,0.00017876,2]
[424737660,1781103046000,-601.1281687,0.00017876,2]
[424737662,1781103046000,-601.1281687,0.00017876,2]
[424737678,1781103046000,-320.66649254,0.00017876,2]
[424737657,1781103046000,-601.1281687,0.00017876,2]
[424737648,1781103046000,-198.05121242,0.000178,2]
[424737680,1781103084000,220.90938433,0.00020565,120]
[424737679,1781103084000,220.90938433,0.00020565,120]
[424737683,1781103481000,-334.95862592,0.000115,2]
[424737684,1781103488000,-537.93772011,0.000115,2]
[424737685,1781103489000,-199.53298916,0.000115,2]
[424737686,1781103510000,-379.55145973,0.000115,2]
[424737687,1781103513000,-271.8617283,0.000115,2]
[424737688,1781103514000,-537.93772011,0.000115,2]
[424737689,1781103520000,-295.46297999,0.000115,2]
[424737690,1781103522000,-537.93772011,0.000115,2]
[424737691,1781103644000,150.0,0.00020566,30]
[424737692,1781103661000,-1056.90563718,0.00011385,2]
[424737693,1781103868000,-775.0,0.00011385,2]
[424737695,1781103937000,-323.9652,0.00011271,2]
[424737696,1781103938000,-190.7548,0.00011385,2]
[424737699,1781103995000,-195.9248,0.000115,2]
[424737698,1781103995000,-300.0,0.00011499,2]
[424737697,1781103995000,-4034.2452,0.00011385,2]
[424737701,1781104025000,-971.73,0.00011385,2]
[424737702,1781104049000,-3225.64,0.00011385,2]
[424737705,1781104089000,-1053.90964075,0.000115,2]
[424737704,1781104089000,-802.63,0.00011385,2]
[424737703,1781104089000,-971.73035925,0.00011271,2]
[424737706,1781104116000,-443.478,0.00011271,2]
[424737707,1781104166000,-4556.52,0.00011271,2]